[Event "Chess Stars Match"]
[Site "Teatro Capri, Paterna, Spain"]
[Date "2019.12.15"]
[Round "1.1"]
[White "Howell, David W L"]
[Black "Vallejo Pons, Francisco"]
[Result "0-1"]
[TimeControl "7m+3s"]
[WhiteTitle "GM"]
[BlackTitle "GM"]
[WhiteFideId "410608"]
[BlackFideId "2205530"]
[WhiteElo "2676"]
[BlackElo "2704"]

1. c4 {[%clk 00:05:02]} {[%emt 00:00:03]} e5 {[%clk 00:05:02]} {[%emt
00:00:05]} 2. Nc3 {[%clk 00:04:59]} {[%emt 00:00:06]} Bb4 {[%clk 00:05:00]}
{[%emt 00:00:05]} 3. Nd5 {[%clk 00:04:56]} {[%emt 00:00:05]} Na6 {[%clk
00:04:59]} {[%emt 00:00:04]} 4. Nxb4 {[%clk 00:04:22]} {[%emt 00:00:38]} Nxb4
{[%clk 00:05:00]} {[%emt 00:00:02]} 5. d4 {[%clk 00:04:03]} {[%emt 00:00:23]}
exd4 {[%clk 00:04:39]} {[%emt 00:00:23]} 6. a3 {[%clk 00:04:04]} {[%emt
00:00:02]} Nc6 {[%clk 00:04:11]} {[%emt 00:00:30]} 7. Nf3 {[%clk 00:03:46]}
{[%emt 00:00:21]} Nf6 {[%clk 00:02:47]} {[%emt 00:01:27]} 8. Nxd4 {[%clk
00:03:25]} {[%emt 00:00:25]} O-O {[%clk 00:02:45]} {[%emt 00:00:04]} 9. e3
{[%clk 00:03:03]} {[%emt 00:00:26]} d5 {[%clk 00:01:40]} {[%emt 00:01:08]} 10.
Nxc6 {[%clk 00:02:47]} {[%emt 00:00:18]} bxc6 {[%clk 00:01:41]} {[%emt
00:00:02]} 11. Be2 {[%clk 00:02:49]} {[%emt 00:00:01]} Ne4 {[%clk 00:01:34]}
{[%emt 00:00:11]} 12. O-O {[%clk 00:02:48]} {[%emt 00:00:04]} Qg5 {[%clk
00:01:30]} {[%emt 00:00:07]} 13. Kh1 {[%clk 00:01:48]} {[%emt 00:01:03]} Rd8
{[%clk 00:01:27]} {[%emt 00:00:07]} 14. f3 {[%clk 00:01:38]} {[%emt 00:00:13]}
dxc4 {[%clk 00:00:39]} {[%emt 00:00:51]} 15. Qc2 {[%clk 00:01:23]} {[%emt
00:00:18]} Nd6 {[%clk 00:00:39]} {[%emt 00:00:03]} 16. e4 {[%clk 00:01:25]}
{[%emt 00:00:01]} Qb5 {[%clk 00:00:36]} {[%emt 00:00:06]} 17. Bf4 {[%clk
00:01:10]} {[%emt 00:00:17]} Rb8 {[%clk 00:00:33]} {[%emt 00:00:07]} 18. Rab1
{[%clk 00:01:06]} {[%emt 00:00:07]} Be6 {[%clk 00:00:34]} {[%emt 00:00:02]} 19.
Rfd1 {[%clk 00:00:55]} {[%emt 00:00:14]} Qb3 {[%clk 00:00:27]} {[%emt
00:00:10]} 20. Rdc1 {[%clk 00:00:18]} {[%emt 00:00:39]} h6 {[%clk 00:00:19]}
{[%emt 00:00:11]} 21. Qxb3 {[%clk 00:00:19]} {[%emt 00:00:02]} Rxb3 {[%clk
00:00:20]} {[%emt 00:00:02]} 22. Bd1 {[%clk 00:00:11]} {[%emt 00:00:11]} Rb7
{[%clk 00:00:11]} {[%emt 00:00:12]} 23. Ba4 {[%clk 00:00:12]} {[%emt 00:00:02]}
Nb5 {[%clk 00:00:11]} {[%emt 00:00:03]} 24. Kg1 {[%clk 00:00:11]} {[%emt
00:00:04]} Nd4 {[%clk 00:00:11]} {[%emt 00:00:03]} 25. Kf2 {[%clk 00:00:12]}
{[%emt 00:00:02]} Rdb8 {[%clk 00:00:13]} {[%emt 00:00:01]} 26. Ke3 {[%clk
00:00:10]} {[%emt 00:00:05]} c5 {[%clk 00:00:15]} {[%emt 00:00:01]} 27. Be5
{[%clk 00:00:07]} {[%emt 00:00:06]} Rxb2 {[%clk 00:00:16]} {[%emt 00:00:02]} 28.
Rxb2 {[%clk 00:00:09]} Rxb2 {[%clk 00:00:18]} {[%emt 00:00:01]} 29. f4 {[%clk
00:00:07]} {[%emt 00:00:05]} Re2# {[%emt 00:00:02]} 0-1

[Event "Chess Stars Match"]
[Site "Teatro Capri, Paterna, Spain"]
[Date "2019.12.15"]
[Round "1.2"]
[White "Hamitevici, Vladimir"]
[Black "Arizmendi Martinez, Julen Luis"]
[Result "0-1"]
[TimeControl "7m+3s"]
[WhiteTitle "GM"]
[BlackTitle "GM"]
[WhiteFideId "13902393"]
[BlackFideId "2205092"]
[WhiteElo "2453"]
[BlackElo "2511"]

1. c4 {[%clk 00:05:01]} {[%emt 00:00:03]} e6 {[%clk 00:04:59]} {[%emt
00:00:09]} 2. g3 {[%clk 00:04:57]} {[%emt 00:00:07]} d5 {[%clk 00:05:00]}
{[%emt 00:00:02]} 3. Bg2 {[%clk 00:04:55]} {[%emt 00:00:05]} Nf6 {[%clk
00:04:53]} {[%emt 00:00:10]} 4. Nf3 {[%clk 00:04:56]} {[%emt 00:00:02]} d4
{[%clk 00:04:45]} {[%emt 00:00:10]} 5. O-O {[%clk 00:04:52]} {[%emt 00:00:07]}
c5 {[%clk 00:04:43]} {[%emt 00:00:06]} 6. b4 {[%clk 00:04:44]} {[%emt
00:00:11]} cxb4 {[%clk 00:04:42]} {[%emt 00:00:05]} 7. a3 {[%clk 00:04:45]}
{[%emt 00:00:02]} Nc6 {[%clk 00:04:25]} {[%emt 00:00:20]} 8. d3 {[%clk
00:04:30]} {[%emt 00:00:17]} a5 {[%clk 00:04:22]} {[%emt 00:00:06]} 9. Nbd2
{[%clk 00:04:00]} {[%emt 00:00:32]} e5 {[%clk 00:03:27]} {[%emt 00:00:59]} 10.
axb4 {[%clk 00:03:55]} {[%emt 00:00:08]} Bxb4 {[%clk 00:03:28]} {[%emt
00:00:02]} 11. Ba3 {[%clk 00:03:57]} Bxa3 {[%clk 00:02:39]} {[%emt 00:00:52]}
12. Rxa3 {[%clk 00:03:59]} {[%emt 00:00:01]} O-O {[%clk 00:02:41]} {[%emt
00:00:02]} 13. Qa1 {[%clk 00:03:44]} {[%emt 00:00:18]} Ra6 {[%clk 00:01:38]}
{[%emt 00:01:06]} 14. Rb3 {[%clk 00:03:29]} {[%emt 00:00:18]} Qe7 {[%clk
00:01:26]} {[%emt 00:00:15]} 15. Rb5 {[%clk 00:03:25]} {[%emt 00:00:07]} a4
{[%clk 00:01:20]} {[%emt 00:00:09]} 16. Rfb1 {[%clk 00:02:58]} {[%emt
00:00:30]} h6 {[%clk 00:01:11]} {[%emt 00:00:12]} 17. Ne1 {[%clk 00:02:24]}
{[%emt 00:00:37]} Ra7 {[%clk 00:00:58]} {[%emt 00:00:16]} 18. Nc2 {[%clk
00:01:38]} {[%emt 00:00:48]} Bg4 {[%clk 00:00:59]} {[%emt 00:00:02]} 19. f3
{[%clk 00:01:25]} {[%emt 00:00:16]} Be6 {[%clk 00:00:56]} {[%emt 00:00:06]} 20.
Qa3 {[%clk 00:01:27]} {[%emt 00:00:02]} Re8 {[%clk 00:00:47]} {[%emt 00:00:12]}
21. Qxe7 {[%clk 00:00:42]} {[%emt 00:00:48]} Rxe7 {[%clk 00:00:49]} {[%emt
00:00:01]} 22. Na3 {[%clk 00:00:43]} {[%emt 00:00:01]} Bc8 {[%clk 00:00:41]}
{[%emt 00:00:11]} 23. Kf1 {[%clk 00:00:24]} {[%emt 00:00:22]} Kf8 {[%clk
00:00:41]} {[%emt 00:00:03]} 24. f4 {[%clk 00:00:16]} {[%emt 00:00:11]} exf4
{[%clk 00:00:41]} {[%emt 00:00:03]} 25. gxf4 {[%clk 00:00:10]} {[%emt
00:00:09]} Ng4 {[%clk 00:00:39]} {[%emt 00:00:05]} 26. Bxc6 {[%clk 00:00:07]}
{[%emt 00:00:05]} bxc6 {[%clk 00:00:40]} {[%emt 00:00:02]} 27. Rb8 {[%clk
00:00:09]} {[%emt 00:00:01]} Nxh2+ {[%clk 00:00:30]} {[%emt 00:00:13]} 28. Ke1
{[%clk 00:00:05]} {[%emt 00:00:07]} Re8 {[%clk 00:00:26]} {[%emt 00:00:08]} 29.
Ne4 {[%clk 00:00:07]} {[%emt 00:00:02]} Rae7 {[%clk 00:00:27]} {[%emt
00:00:02]} 30. Kd1 {[%clk 00:00:05]} {[%emt 00:00:04]} Bg4 {[%clk 00:00:24]}
{[%emt 00:00:06]} 31. Nd6 {[%clk 00:00:07]} {[%emt 00:00:01]} Rxe2 {[%clk
00:00:19]} {[%emt 00:00:08]} 32. Nxe8 {[%clk 00:00:07]} {[%emt 00:00:03]} Rxe8+
{[%clk 00:00:18]} {[%emt 00:00:04]} 33. Kc2 {[%clk 00:00:10]} h5 {[%clk
00:00:19]} {[%emt 00:00:02]} 34. c5 {[%clk 00:00:05]} {[%emt 00:00:08]} h4
{[%clk 00:00:19]} {[%emt 00:00:03]} 35. Rxe8+ {[%clk 00:00:05]} {[%emt
00:00:03]} Kxe8 {[%clk 00:00:21]} 36. Rh1 {[%clk 00:00:07]} Nf3 {[%clk
00:00:24]} {[%emt 00:00:01]} 37. Nc4 {[%clk 00:00:08]} {[%emt 00:00:02]} f6
{[%clk 00:00:24]} {[%emt 00:00:02]} 38. Nd2 {[%clk 00:00:09]} {[%emt 00:00:02]}
Nxd2 {[%clk 00:00:25]} {[%emt 00:00:02]} 39. Kxd2 {[%clk 00:00:11]} g5 {[%clk
00:00:26]} {[%emt 00:00:02]} 40. fxg5 {[%clk 00:00:11]} {[%emt 00:00:03]} fxg5
{[%clk 00:00:29]} 41. Rg1 {[%clk 00:00:14]} Bf3 {[%clk 00:00:30]} {[%emt
00:00:02]} 42. Rxg5 {[%clk 00:00:14]} {[%emt 00:00:02]} h3 {[%clk 00:00:31]}
{[%emt 00:00:02]} 43. Rg8+ {[%clk 00:00:12]} {[%emt 00:00:05]} Kf7 {[%clk
00:00:32]} {[%emt 00:00:01]} 44. Rh8 {[%clk 00:00:14]} {[%emt 00:00:02]} Bg2
{[%clk 00:00:32]} {[%emt 00:00:04]} 45. Ke2 {[%clk 00:00:09]} {[%emt 00:00:08]}
a3 {[%clk 00:00:32]} {[%emt 00:00:03]} 46. Kf2 {[%clk 00:00:10]} {[%emt
00:00:02]} a2 {[%clk 00:00:33]} {[%emt 00:00:02]} 47. Ra8 {[%clk 00:00:11]}
{[%emt 00:00:02]} Bd5 {[%clk 00:00:35]} {[%emt 00:00:01]} 48. Kg3 {[%clk
00:00:12]} {[%emt 00:00:03]} Be6 {[%clk 00:00:36]} {[%emt 00:00:02]} 49. Ra5
{[%clk 00:00:07]} {[%emt 00:00:08]} Kf6 {[%clk 00:00:38]} {[%emt 00:00:01]} 50.
Kf3 {[%clk 00:00:05]} {[%emt 00:00:05]} Ke5 {[%clk 00:00:37]} {[%emt 00:00:03]}
51. Kg3 {[%clk 00:00:07]} {[%emt 00:00:01]} Kf6 {[%clk 00:00:35]} {[%emt
00:00:04]} 52. Kf3 {[%clk 00:00:10]} Kg5 {[%clk 00:00:35]} {[%emt 00:00:04]} 53.
Kg3 {[%clk 00:00:12]} Kh5 {[%clk 00:00:37]} {[%emt 00:00:01]} 54. Ra6 {[%clk
00:00:11]} {[%emt 00:00:04]} Kg5 {[%clk 00:00:37]} {[%emt 00:00:03]} 55. Ra5
{[%clk 00:00:13]} h2 {[%clk 00:00:37]} {[%emt 00:00:03]} 56. Kxh2 {[%clk
00:00:14]} {[%emt 00:00:02]} Kf4 {[%clk 00:00:39]} 57. Ra3 {[%clk 00:00:11]}
{[%emt 00:00:06]} Ke3 {[%clk 00:00:41]} {[%emt 00:00:01]} 58. Kg3 {[%clk
00:00:13]} Kd2 {[%clk 00:00:43]} {[%emt 00:00:02]} 59. Kf4 {[%clk 00:00:16]}
Kc2 {[%clk 00:00:43]} {[%emt 00:00:03]} 60. Ke5 {[%clk 00:00:17]} {[%emt
00:00:02]} Kb2 {[%clk 00:00:45]} 61. Ra5 {[%clk 00:00:09]} {[%emt 00:00:10]}
Bd5 {[%clk 00:00:45]} {[%emt 00:00:04]} 0-1

[Event "Chess Stars Match"]
[Site "Teatro Capri, Paterna, Spain"]
[Date "2019.12.15"]
[Round "1.3"]
[White "Injac, Teodora"]
[Black "Semenova, Elena"]
[Result "1-0"]
[TimeControl "7m+3s"]
[WhiteTitle "WIM"]
[BlackTitle "WIM"]
[WhiteFideId "932400"]
[BlackFideId "24125148"]
[WhiteElo "2284"]
[BlackElo "2290"]

1. Nf3 {[%clk 00:05:03]} {[%emt 00:00:02]} d5 {[%clk 00:05:02]} {[%emt
00:00:04]} 2. g3 {[%clk 00:05:01]} {[%emt 00:00:06]} Nd7 {[%clk 00:04:47]}
{[%emt 00:00:18]} 3. d4 {[%clk 00:04:55]} {[%emt 00:00:09]} b5 {[%clk
00:04:46]} {[%emt 00:00:04]} 4. Bg2 {[%clk 00:04:54]} {[%emt 00:00:05]} Bb7
{[%clk 00:04:46]} {[%emt 00:00:03]} 5. O-O {[%clk 00:04:53]} {[%emt 00:00:04]}
Ngf6 {[%clk 00:04:43]} {[%emt 00:00:06]} 6. a4 {[%clk 00:04:42]} {[%emt
00:00:14]} b4 {[%clk 00:04:30]} {[%emt 00:00:16]} 7. c4 {[%clk 00:04:35]}
{[%emt 00:00:10]} bxc3 {[%clk 00:03:38]} {[%emt 00:00:54]} 8. Nxc3 {[%clk
00:04:31]} {[%emt 00:00:07]} e6 {[%clk 00:03:35]} {[%emt 00:00:07]} 9. Bf4
{[%clk 00:04:20]} {[%emt 00:00:14]} c6 {[%clk 00:02:49]} {[%emt 00:00:49]} 10.
a5 {[%clk 00:04:00]} {[%emt 00:00:23]} Ba6 {[%clk 00:02:22]} {[%emt 00:00:30]}
11. Re1 {[%clk 00:03:40]} {[%emt 00:00:23]} Be7 {[%clk 00:01:47]} {[%emt
00:00:38]} 12. Qa4 {[%clk 00:03:22]} {[%emt 00:00:21]} Rc8 {[%clk 00:01:46]}
{[%emt 00:00:04]} 13. Rac1 {[%clk 00:02:55]} {[%emt 00:00:30]} O-O {[%clk
00:01:47]} {[%emt 00:00:03]} 14. e4 {[%clk 00:02:01]} {[%emt 00:00:56]} dxe4
{[%clk 00:01:35]} {[%emt 00:00:16]} 15. Nxe4 {[%clk 00:01:49]} {[%emt
00:00:15]} Nxe4 {[%clk 00:01:15]} {[%emt 00:00:23]} 16. Rxe4 {[%clk 00:01:51]}
c5 {[%clk 00:01:04]} {[%emt 00:00:14]} 17. Rd1 {[%clk 00:00:42]} {[%emt
00:01:12]} Nf6 {[%clk 00:00:35]} {[%emt 00:00:32]} 18. Ree1 {[%clk 00:00:34]}
{[%emt 00:00:11]} Nd5 {[%clk 00:00:24]} {[%emt 00:00:14]} 19. dxc5 {[%clk
00:00:31]} {[%emt 00:00:06]} Qe8 {[%clk 00:00:24]} {[%emt 00:00:04]} 20. Qxe8
Rfxe8 {[%clk 00:00:25]} 21. Bd6 {[%clk 00:00:23]} {[%emt 00:00:08]} Bxd6 {[%clk
00:00:22]} {[%emt 00:00:06]} 22. cxd6 {[%clk 00:00:26]} {[%emt 00:00:01]} Red8
{[%clk 00:00:24]} 23. Nd4 {[%clk 00:00:16]} {[%emt 00:00:12]} Rxd6 {[%clk
00:00:19]} {[%emt 00:00:08]} 24. Rc1 {[%clk 00:00:08]} {[%emt 00:00:12]} Rdd8
{[%clk 00:00:12]} {[%emt 00:00:10]} 25. h4 {[%clk 00:00:07]} {[%emt 00:00:04]}
Kf8 {[%clk 00:00:08]} {[%emt 00:00:07]} 26. Bf3 {[%clk 00:00:07]} {[%emt
00:00:02]} Bd3 {[%clk 00:00:00]} {[%emt 00:00:10]} 27. Nc6 {[%clk 00:00:08]}
{[%emt 00:00:02]} 1-0

[Event "Chess Stars Match"]
[Site "Teatro Capri, Paterna, Spain"]
[Date "2019.12.15"]
[Round "1.4"]
[White "Randazzo, Adrian"]
[Black "Llobell Cortell, Enrique"]
[Result "1/2-1/2"]
[TimeControl "7m+3s"]
[WhiteTitle "FM"]
[BlackTitle "IM"]
[WhiteFideId "114251"]
[BlackFideId "2216116"]
[WhiteElo "2230"]
[BlackElo "2401"]

1. e4 {[%clk 00:05:03]} {[%emt 00:00:02]} d6 {[%clk 00:05:05]} {[%emt
00:00:02]} 2. d4 {[%clk 00:05:03]} {[%emt 00:00:03]} Nf6 {[%clk 00:05:07]} 3.
Nc3 {[%clk 00:05:03]} {[%emt 00:00:04]} c6 {[%clk 00:05:09]} {[%emt 00:00:01]}
4. Nf3 {[%clk 00:04:58]} {[%emt 00:00:07]} Bg4 {[%clk 00:05:10]} {[%emt
00:00:01]} 5. Be2 {[%clk 00:04:58]} {[%emt 00:00:04]} e6 {[%clk 00:05:12]}
{[%emt 00:00:01]} 6. O-O {[%clk 00:04:57]} {[%emt 00:00:04]} d5 {[%clk
00:05:14]} {[%emt 00:00:01]} 7. exd5 {[%clk 00:04:13]} {[%emt 00:00:47]} Bxf3
{[%clk 00:05:15]} {[%emt 00:00:02]} 8. Bxf3 {[%clk 00:04:14]} {[%emt 00:00:02]}
cxd5 {[%clk 00:05:17]} {[%emt 00:00:01]} 9. Bf4 {[%clk 00:04:10]} {[%emt
00:00:07]} Nc6 {[%clk 00:05:12]} {[%emt 00:00:08]} 10. Ne2 {[%clk 00:03:42]}
{[%emt 00:00:31]} Bd6 {[%clk 00:05:13]} {[%emt 00:00:01]} 11. c3 {[%clk
00:03:40]} {[%emt 00:00:05]} O-O {[%clk 00:05:10]} {[%emt 00:00:06]} 12. Qd2
{[%clk 00:03:40]} {[%emt 00:00:04]} Qc7 {[%clk 00:05:01]} {[%emt 00:00:11]} 13.
Bxd6 {[%clk 00:03:16]} {[%emt 00:00:28]} Qxd6 {[%clk 00:05:03]} {[%emt
00:00:02]} 14. Qf4 {[%clk 00:03:15]} {[%emt 00:00:03]} Qxf4 {[%clk 00:05:05]}
{[%emt 00:00:01]} 15. Nxf4 {[%clk 00:03:16]} {[%emt 00:00:02]} Rfc8 {[%clk
00:05:06]} {[%emt 00:00:01]} 16. Nd3 {[%clk 00:03:11]} {[%emt 00:00:09]} Rab8
{[%clk 00:05:05]} {[%emt 00:00:03]} 17. Rfc1 {[%clk 00:03:00]} {[%emt
00:00:14]} Na5 {[%clk 00:05:07]} {[%emt 00:00:02]} 18. Ne5 {[%clk 00:02:55]}
{[%emt 00:00:08]} Rc7 {[%clk 00:05:02]} {[%emt 00:00:08]} 19. h3 {[%clk
00:02:45]} {[%emt 00:00:13]} Nd7 {[%clk 00:05:01]} {[%emt 00:00:04]} 20. Nxd7
{[%clk 00:02:43]} {[%emt 00:00:05]} Rxd7 {[%clk 00:05:02]} {[%emt 00:00:02]} 21.
Be2 {[%clk 00:02:43]} {[%emt 00:00:04]} Rc7 {[%clk 00:05:02]} {[%emt 00:00:02]}
22. Bd3 {[%clk 00:02:42]} {[%emt 00:00:04]} h6 {[%clk 00:05:02]} {[%emt
00:00:03]} 23. f4 {[%clk 00:02:43]} {[%emt 00:00:02]} g6 {[%clk 00:04:59]}
{[%emt 00:00:06]} 24. Kf2 {[%clk 00:02:44]} {[%emt 00:00:01]} Kf8 {[%clk
00:04:50]} {[%emt 00:00:13]} 25. Ke3 {[%clk 00:02:44]} {[%emt 00:00:02]} Ke7
{[%clk 00:04:51]} {[%emt 00:00:02]} 26. g4 {[%clk 00:02:41]} {[%emt 00:00:06]}
f5 {[%clk 00:04:49]} {[%emt 00:00:05]} 27. Rg1 {[%clk 00:02:33]} {[%emt
00:00:10]} Kf6 {[%clk 00:04:45]} {[%emt 00:00:07]} 28. h4 {[%clk 00:02:04]}
{[%emt 00:00:32]} Nc4+ {[%clk 00:03:28]} {[%emt 00:01:21]} 29. Bxc4 {[%clk
00:02:02]} {[%emt 00:00:05]} Rxc4 {[%clk 00:03:29]} {[%emt 00:00:01]} 30. g5+
{[%clk 00:01:57]} {[%emt 00:00:08]} hxg5 {[%clk 00:03:01]} {[%emt 00:00:32]} 31.
hxg5+ {[%clk 00:01:57]} {[%emt 00:00:02]} Kg7 {[%clk 00:02:53]} {[%emt
00:00:12]} 32. Rh1 {[%clk 00:01:58]} {[%emt 00:00:02]} Rcc8 {[%clk 00:02:29]}
{[%emt 00:00:27]} 33. Rh6 {[%clk 00:01:45]} {[%emt 00:00:16]} Rh8 {[%clk
00:02:30]} {[%emt 00:00:01]} 34. Rah1 {[%clk 00:01:46]} {[%emt 00:00:02]} Rxh6
{[%clk 00:02:28]} {[%emt 00:00:06]} 35. Rxh6 {[%clk 00:01:47]} {[%emt
00:00:02]} b5 {[%clk 00:02:15]} {[%emt 00:00:16]} 1/2-1/2

[Event "Chess Stars Match"]
[Site "Teatro Capri, Paterna, Spain"]
[Date "2019.12.15"]
[Round "1.5"]
[White "Povshednyi, Ivan"]
[Black "Macias Pino, Diego"]
[Result "1/2-1/2"]
[TimeControl "7m+3s"]
[WhiteFideId "14190907"]
[BlackFideId "24529133"]
[WhiteElo "1795"]
[BlackElo "2161"]

1. e4 {[%clk 00:05:03]} {[%emt 00:00:02]} c6 {[%clk 00:05:06]} 2. Nc3 {[%clk
00:05:00]} {[%emt 00:00:06]} d5 {[%clk 00:05:08]} {[%emt 00:00:01]} 3. Nf3
{[%clk 00:05:02]} Nf6 {[%clk 00:05:08]} {[%emt 00:00:03]} 4. exd5 {[%clk
00:05:01]} {[%emt 00:00:04]} cxd5 {[%clk 00:05:10]} {[%emt 00:00:01]} 5. d4
{[%clk 00:05:03]} Nc6 {[%clk 00:05:12]} {[%emt 00:00:01]} 6. Bf4 {[%clk
00:05:00]} {[%emt 00:00:06]} a6 {[%clk 00:05:07]} {[%emt 00:00:09]} 7. Be2
{[%clk 00:04:58]} {[%emt 00:00:04]} Bg4 {[%clk 00:05:07]} {[%emt 00:00:03]} 8.
O-O {[%clk 00:04:52]} {[%emt 00:00:09]} e6 {[%clk 00:05:04]} {[%emt 00:00:06]}
9. h3 {[%clk 00:04:53]} {[%emt 00:00:02]} Bxf3 {[%clk 00:05:05]} {[%emt
00:00:02]} 10. Bxf3 {[%clk 00:04:54]} Bd6 {[%clk 00:05:06]} {[%emt 00:00:02]}
11. Bxd6 {[%clk 00:04:51]} {[%emt 00:00:06]} Qxd6 {[%clk 00:05:08]} {[%emt
00:00:01]} 12. Re1 {[%clk 00:04:50]} {[%emt 00:00:04]} O-O {[%clk 00:05:04]}
{[%emt 00:00:06]} 13. Na4 {[%clk 00:04:33]} {[%emt 00:00:22]} b5 {[%clk
00:04:59]} {[%emt 00:00:08]} 14. Nc5 {[%clk 00:04:32]} {[%emt 00:00:04]} Rfc8
{[%clk 00:04:59]} {[%emt 00:00:02]} 15. c3 {[%clk 00:04:34]} {[%emt 00:00:01]}
b4 {[%clk 00:04:26]} {[%emt 00:00:36]} 16. Qa4 {[%clk 00:04:14]} {[%emt
00:00:23]} bxc3 {[%clk 00:04:09]} {[%emt 00:00:20]} 17. bxc3 {[%clk 00:04:16]}
{[%emt 00:00:01]} e5 {[%clk 00:04:06]} {[%emt 00:00:07]} 18. Rad1 {[%clk
00:03:45]} {[%emt 00:00:34]} exd4 {[%clk 00:03:31]} {[%emt 00:00:38]} 19. cxd4
{[%clk 00:03:47]} {[%emt 00:00:01]} Nxd4 {[%clk 00:03:22]} {[%emt 00:00:12]} 20.
Qxd4 {[%clk 00:03:41]} {[%emt 00:00:08]} Rxc5 {[%clk 00:03:11]} {[%emt
00:00:16]} 21. g3 {[%clk 00:03:24]} {[%emt 00:00:19]} Rac8 {[%clk 00:03:00]}
{[%emt 00:00:14]} 22. Kg2 {[%clk 00:03:18]} {[%emt 00:00:09]} h6 {[%clk
00:03:01]} {[%emt 00:00:02]} 23. h4 {[%clk 00:03:12]} {[%emt 00:00:10]} Rc4
{[%clk 00:02:45]} {[%emt 00:00:19]} 24. Qe3 {[%clk 00:02:47]} {[%emt 00:00:27]}
Rc3 {[%clk 00:01:41]} {[%emt 00:01:08]} 25. Qe7 {[%clk 00:02:30]} {[%emt
00:00:19]} Qxe7 {[%clk 00:01:12]} {[%emt 00:00:32]} 26. Rxe7 {[%clk 00:02:32]}
{[%emt 00:00:02]} Rd8 {[%clk 00:01:13]} {[%emt 00:00:02]} 27. Rd4 {[%clk
00:02:15]} {[%emt 00:00:20]} Ra3 {[%clk 00:01:03]} {[%emt 00:00:15]} 28. Re5
{[%clk 00:01:49]} {[%emt 00:00:28]} Rxa2 {[%clk 00:00:55]} {[%emt 00:00:12]} 29.
Bxd5 {[%clk 00:01:33]} {[%emt 00:00:19]} Nxd5 {[%clk 00:00:56]} {[%emt
00:00:01]} 30. Rexd5 {[%clk 00:01:34]} {[%emt 00:00:02]} Rxd5 {[%clk 00:00:59]}
{[%emt 00:00:01]} 31. Rxd5 {[%clk 00:01:36]} {[%emt 00:00:01]} a5 {[%clk
00:01:01]} 32. Rd7 {[%clk 00:01:35]} {[%emt 00:00:02]} g6 {[%clk 00:01:03]}
{[%emt 00:00:02]} 33. Ra7 {[%clk 00:01:37]} {[%emt 00:00:02]} Kg7 {[%clk
00:01:05]} {[%emt 00:00:01]} 34. Kf3 {[%clk 00:01:37]} {[%emt 00:00:03]} Kf6
{[%clk 00:01:06]} {[%emt 00:00:02]} 35. Ke3 {[%clk 00:01:36]} {[%emt 00:00:03]}
Ke6 {[%clk 00:01:08]} {[%emt 00:00:02]} 36. Kf3 {[%clk 00:01:35]} {[%emt
00:00:04]} a4 {[%clk 00:01:09]} {[%emt 00:00:02]} 37. Ke3 {[%clk 00:01:35]}
{[%emt 00:00:03]} a3 {[%clk 00:01:07]} {[%emt 00:00:05]} 38. Kf3 {[%clk
00:01:33]} {[%emt 00:00:04]} Ra1 {[%clk 00:01:08]} {[%emt 00:00:02]} 39. Kg2
{[%clk 00:01:27]} {[%emt 00:00:09]} f6 {[%clk 00:00:47]} {[%emt 00:00:23]} 40.
Kf3 {[%clk 00:01:28]} {[%emt 00:00:02]} Ke5 {[%clk 00:00:47]} {[%emt 00:00:04]}
41. Ra4 {[%clk 00:01:12]} {[%emt 00:00:19]} Kd5 {[%clk 00:00:46]} {[%emt
00:00:04]} 42. Kg4 {[%clk 00:01:09]} {[%emt 00:00:05]} Kc5 {[%clk 00:00:39]}
{[%emt 00:00:10]} 43. h5 {[%clk 00:01:08]} {[%emt 00:00:04]} gxh5+ {[%clk
00:00:28]} {[%emt 00:00:13]} 44. Kxh5 {[%clk 00:01:10]} {[%emt 00:00:01]} Kb5
{[%clk 00:00:30]} {[%emt 00:00:02]} 45. Ra8 {[%clk 00:01:10]} {[%emt 00:00:02]}
Kb4 {[%clk 00:00:25]} {[%emt 00:00:07]} 46. Kxh6 {[%clk 00:01:06]} {[%emt
00:00:07]} Kb3 {[%clk 00:00:26]} {[%emt 00:00:02]} 47. Kg6 {[%clk 00:01:08]}
Rf1 {[%clk 00:00:22]} {[%emt 00:00:08]} 48. f4 {[%clk 00:01:09]} {[%emt
00:00:03]} Rf3 {[%clk 00:00:24]} {[%emt 00:00:01]} 49. Kxf6 {[%clk 00:01:09]}
{[%emt 00:00:03]} Rxg3 {[%clk 00:00:25]} {[%emt 00:00:01]} 50. Ke6 {[%clk
00:00:55]} {[%emt 00:00:16]} a2 {[%clk 00:00:21]} {[%emt 00:00:07]} 51. Rxa2
{[%clk 00:00:56]} {[%emt 00:00:02]} Kxa2 {[%clk 00:00:24]} {[%emt 00:00:01]} 52.
f5 {[%clk 00:00:59]} Re3+ {[%clk 00:00:26]} 53. Kd7 {[%clk 00:00:55]} {[%emt
00:00:03]} Rf3 {[%clk 00:00:21]} {[%emt 00:00:12]} 54. Ke6 {[%clk 00:00:56]}
{[%emt 00:00:01]} Re3+ {[%clk 00:00:20]} {[%emt 00:00:03]} 55. Kd7 {[%clk
00:00:59]} {[%emt 00:00:01]} Kb3 {[%clk 00:00:23]} 56. f6 {[%clk 00:00:59]}
{[%emt 00:00:03]} 1/2-1/2